[Event "44th Chess Olympiad Open 2022"]
[Site "Chennai"]
[Date "2022.08.06"]
[Round "8.46"]
[White "Saraci, Nderim"]
[Black "Rehan, Deng Cypriano"]
[Result "1/2-1/2"]
[WhiteElo "2495"]
[BlackElo "2105"]
[Annotator "TA"]
[PlyCount "134"]
[EventDate "2022.??.??"]
[TimeControl "60"]

{[%evp 13,134,58,50,-17,-8,-33,-44,-51,-34,-51,-2,-8,-1,-8,-9,-18,46,-20,-25,
-23,-17,-14,0,0,0,-1,25,22,22,29,47,47,46,40,108,97,103,105,230,41,41,33,78,37,
80,8,14,12,20,14,6,5,6,0,6,0,0,0,8,8,8,8,8,0,0,0,18,0,0,0,0,0,0,0,4,11,11,11,
11,17,18,18,18,0,0,0,0,0,0,0,0,0,0,0,0,0,0,0,0,0,0,0,0,0,0,0,0,0,0,0,7,7,7,7,8,
0,0,-4,-4,-8,0,0,0]} 1. c4 {[%emt 0:00:04]} e5 {[%emt 0:00:19]} 2. g3 {[%emt 0:
00:00]} Nf6 {[%emt 0:00:08]} 3. Bg2 {[%emt 0:00:26]} d5 {[%emt 0:00:07]} 4.
cxd5 {[%emt 0:00:07]} Nxd5 {[%emt 0:00:10]} 5. Nf3 {[%emt 0:00:29]} Nc6 {
[%emt 0:00:13]} 6. Nc3 {[%emt 0:04:34]} Be6 {[%emt 0:00:15]} 7. O-O {[%emt 0:
00:00]} Be7 {[%emt 0:00:26]} 8. Qc2 {[%emt 0:06:42] [#] A29: English Opening:
Four Knights Variation with 4 g3.} (8. d4 $14) 8... Qd7 $146 {[%emt 0:09:30]} (
{Predecessor:} 8... O-O 9. Nxd5 Bxd5 10. d3 f5 11. a3 f4 12. b4 Kh8 13. Bb2 Bf6
14. Rac1 Rc8 {½-½ (29) Avalos,K-Liao,J Lima 2002}) 9. b3 {[%emt 0:19:10]} f6
{[%emt 0:06:50]} 10. Bb2 {[%emt 0:04:35] Black is slightly better.} Ndb4 {
[%emt 0:01:27]} 11. Qc1 {[%emt 0:06:24]} a5 {[%emt 0:01:23]} (11... O-O-O $15)
12. Rd1 {[%emt 0:04:13][%cal Yd2d4]} Nd4 {[%emt 0:19:55]} 13. Nxd4 {[%emt 0:00:
00]} exd4 {[%emt 0:00:13]} 14. Na4 {[%emt 0:13:15]} d3 {[%emt 0:01:42]} (14...
Rb8 $11) 15. Nc5 {[%emt 0:08:14]} ({White should try} 15. Bxb7 $14 dxe2 16.
Bxa8 exd1=N 17. Qxd1) 15... Bxc5 $11 {[%emt 0:04:19]} 16. Qxc5 {[%emt 0:02:17]}
dxe2 {[%emt 0:00:29]} 17. Qh5+ {[%emt 0:03:50]} Qf7 {[%emt 0:00:25]} 18. Qxe2 {
[%emt 0:00:15] [#] And now Re1 would win.} O-O {[%emt 0:00:18]} 19. Bc3 {
[%emt 0:05:10]} Bd5 {[%emt 0:02:32]} 20. Bxb4 {[%emt 0:00:42]} axb4 {[%emt 0:
00:00]} 21. Qb5 {[%emt 0:00:18][%csl Yb4,Yd5]} Rfd8 {[%emt 0:03:59]} 22. Bxd5 {
[%emt 0:00:26]} Qxd5 {[%emt 0:00:33]} 23. Qxb4 {[%emt 0:00:05]} Qf3 {[%emt 0:
00:00]} (23... Rd7 $14) 24. Qc4+ {[%emt 0:01:19]} Rd5 {[%emt 0:00:40]} 25. Qxc7
{[%emt 0:03:49]} h5 {[%emt 0:00:18]} (25... Rd4 $16) 26. Qc3 $2 {[%emt 0:03:59]
} (26. Qxb7 $18 Rxa2 27. h4 (27. Rf1 Rxa1 28. Rxa1 Qf5 $16)) 26... Rd3 $1 $14 {
[%emt 0:00:51]} 27. Qc4+ {[%emt 0:00:19]} Kh8 {[%emt 0:00:23]} 28. b4 {[%emt 0:
00:00]} b5 {[%emt 0:08:39]} 29. Qf4 {[%emt 0:02:41]} (29. Qxb5 $16 {Threatens
to win with Qc4.} Rxa2 30. Qe8+ (30. Qxd3 Qxd3 31. Rxa2 h4 $11) 30... Kh7 31.
Qe1 (31. Rxa2 Qxd1+ 32. Kg2 Qf3+ 33. Kg1 Qd1+ 34. Kg2 Qf3+ 35. Kg1 Qd1+ $11)
31... Rxa1 32. Rxa1) 29... Qxf4 $11 {[%emt 0:00:52] The position is equal.} 30.
gxf4 {[%emt 0:00:01] Endgame KRR-KRR} Rad8 {[%emt 0:00:19]} 31. Rac1 {[%emt 0:
00:44]} R8d4 $1 {[%emt 0:02:59]} 32. Rc5 {[%emt 0:00:44]} Rxb4 {[%emt 0:00:26]}
33. Rxh5+ {[%emt 0:00:06]} Kg8 {[%emt 0:00:39]} 34. f5 {[%emt 0:00:20]} Rb2 {
[%emt 0:00:50]} 35. Re1 {[%emt 0:00:57]} Rd8 {[%emt 0:00:00] Against Re8+} ({
Resist} 35... Rbxd2 36. Re8+ Kf7 37. Rhh8 $16) 36. Re7 {[%emt 0:00:42]} Rbxd2 {
[%emt 0:00:33]} ({Don't play} 36... Rdxd2 37. Re8+ Kf7 38. Rhh8 $16) 37. Rh3 {
[%emt 0:00:11]} R2d7 {[%emt 0:00:46]} 38. Re6 {[%emt 0:00:00]} Rd5 {[%emt 0:01:
09]} 39. Rf3 {[%emt 0:00:11]} Kf7 {[%emt 0:01:09]} 40. Rb6 {[%emt 0:00:06]}
R8d6 {[%emt 0:00:52]} 41. Rb7+ {[%emt 0:30:28]} Rd7 {[%emt 0:30:10]} 42. Rb8 {
[%emt 0:00:32]} Rd8 {[%emt 0:00:09]} 43. Rxd8 {[%emt 0:00:09]} Rxd8 {[%emt 0:
00:01] KR-KR} 44. Kg2 {[%emt 0:00:32]} b4 {[%emt 0:01:32]} 45. Rb3 {[%emt 0:00:
00]} Rd2 {[%emt 0:00:00]} 46. Rxb4 {[%emt 0:00:00] [#] Hoping for a4.} Rxa2 {
[%emt 0:00:00]} 47. Kg3 {[%emt 0:00:00]} Kg8 {[%emt 0:00:00]} 48. h4 {[%emt 0:
00:00]} Kh7 {[%emt 0:00:00]} 49. Rb8 {[%emt 0:00:00]} Ra1 {[%emt 0:00:00]} 50.
Rb3 {[%emt 0:00:00]} Rg1+ {[%emt 0:00:00]} 51. Kh3 {[%emt 0:00:00]} Rf1 {
[%emt 0:00:00]} 52. Kg2 {[%emt 0:00:00]} Ra1 {[%emt 0:00:00]} 53. Rb5 {[%emt 0:
00:00]} Rc1 {[%emt 0:00:00]} 54. Rb4 {[%emt 0:00:00]} Rc5 {[%emt 0:00:00]} 55.
Rf4 {[%emt 0:00:00]} Rc3 {[%emt 0:00:00]} 56. f3 {[%emt 0:00:00]} Rc2+ {
[%emt 0:00:00]} 57. Kg3 {[%emt 0:00:00]} Rc5 {[%emt 0:00:00]} 58. Kg4 {[%emt 0:
00:00]} Rc1 {[%emt 0:00:00]} 59. Rd4 {[%emt 0:00:00]} Rg1+ {[%emt 0:00:00]} 60.
Kf4 {[%emt 0:00:00]} Re1 {[%emt 0:00:00]} 61. Rd8 {[%emt 0:00:00]} Rh1 {
[%emt 0:00:00]} 62. Kg3 {[%emt 0:00:00]} Rg1+ {[%emt 0:00:00]} 63. Kh2 {
[%emt 0:00:00]} Re1 {[%emt 0:00:00]} 64. f4 {[%emt 0:00:00]} Re3 {[%emt 0:00:
00]} 65. h5 {[%emt 0:00:00]} Rf3 {[%emt 0:00:00]} 66. Rd4 {[%emt 0:00:00]} Ra3
{[%emt 0:00:00]} 67. Rd8 {[%emt 0:00:00]} Rf3 {[%emt 0:00:00] Weighted Error
Value: White=0.15 (very precise) /Black=0.10 (very precise)} 1/2-1/2

[Event "44th Chess Olympiad Open 2022"]
[Site "Chennai"]
[Date "2022.08.06"]
[Round "8.46"]
[White "Makolli, Perparim"]
[Black "Peter Majur Manyang"]
[Result "1-0"]
[WhiteElo "2247"]
[BlackElo "2095"]
[Annotator "RC"]
[PlyCount "121"]
[EventDate "2022.??.??"]
[TimeControl "60"]

1. e4 {[%emt 0:00:12]} c5 {[%emt 0:01:06]} 2. Nf3 {[%emt 0:00:21]} e6 {[%emt 0:
00:00]} 3. d4 {[%emt 0:00:17]} cxd4 {[%emt 0:00:22]} 4. Nxd4 {[%emt 0:00:06]}
a6 {[%emt 0:00:00]} 5. Bd3 {[%emt 0:00:19]} Nf6 {[%emt 0:00:42]} 6. Qe2 {
[%emt 0:00:11]} Nc6 {[%emt 0:04:09]} 7. Nxc6 {[%emt 0:08:52]} dxc6 {[%emt 0:00:
00]} 8. e5 {[%emt 0:00:16]} Nd7 {[%emt 0:00:15]} 9. O-O {[%emt 0:00:35]} Qc7 {
[%emt 0:00:11]} 10. f4 {[%emt 0:01:45]} Nc5 {[%emt 0:00:13]} 11. Nc3 {[%emt 0:
00:00]} Bd7 {[%emt 0:05:30]} 12. Be3 {[%emt 0:01:49]} Nxd3 {[%emt 0:02:57]} 13.
cxd3 {[%emt 0:03:09]} c5 {[%emt 0:04:03]} 14. Qf2 {[%emt 0:00:33]} Be7 {
[%emt 0:16:37]} 15. Rac1 {[%emt 0:02:40]} O-O {[%emt 0:02:34]} 16. Ne4 {
[%emt 0:01:56]} b6 {[%emt 0:01:13]} 17. b4 {[%emt 0:01:21]} Bb5 {[%emt 0:00:20]
} 18. Rfd1 {[%emt 0:03:31]} Rad8 {[%emt 0:09:34]} 19. bxc5 {[%emt 0:02:04]}
bxc5 {[%emt 0:02:00]} 20. Nxc5 {[%emt 0:03:17]} Bxc5 {[%emt 0:01:54]} 21. Bxc5
{[%emt 0:00:15]} Rfe8 {[%emt 0:00:08]} 22. Bb6 {[%emt 0:00:20]} Qe7 {[%emt 0:
00:00]} 23. Bxd8 {[%emt 0:00:52]} Rxd8 {[%emt 0:00:09]} 24. d4 {[%emt 0:06:37]}
g6 {[%emt 0:01:09]} 25. h3 {[%emt 0:01:38]} Qd7 {[%emt 0:04:17]} 26. Qf3 {
[%emt 0:03:07]} Qa7 {[%emt 0:01:00]} 27. Qe4 {[%emt 0:00:53]} Qb6 {[%emt 0:00:
00]} 28. Kh2 {[%emt 0:00:17]} Ba4 {[%emt 0:00:58]} 29. Rd2 {[%emt 0:01:00]} Qb4
{[%emt 0:00:27]} 30. Qe3 {[%emt 0:00:18]} Qe7 {[%emt 0:01:43]} 31. Rc5 {
[%emt 0:00:27]} Rb8 {[%emt 0:06:24]} 32. Qa3 {[%emt 0:03:36]} Bc6 {[%emt 0:00:
00]} 33. d5 {[%emt 0:02:23]} exd5 {[%emt 0:00:42]} 34. Qc3 {[%emt 0:00:48]} Bd7
{[%emt 0:01:23]} 35. Rcxd5 {[%emt 0:02:06]} Be6 {[%emt 0:01:17]} 36. Rd6 {
[%emt 0:00:38]} h5 {[%emt 0:01:34]} 37. Rxa6 {[%emt 0:11:21]} Kh7 {[%emt 0:00:
00]} 38. Rc6 {[%emt 0:06:47]} Rb1 {[%emt 0:00:42]} 39. Qc5 {[%emt 0:01:29]} Qh4
{[%emt 0:00:56]} 40. Qf2 {[%emt 0:00:11]} Qe7 {[%emt 0:00:16]} 41. Rdd6 {
[%emt 0:31:03]} Bf5 {[%emt 0:34:15]} 42. Ra6 {[%emt 0:03:47]} Rb7 {[%emt 0:00:
00]} 43. Ra8 {[%emt 0:01:50]} Rd7 {[%emt 0:04:57]} 44. Rxd7 {[%emt 0:00:13]}
Qxd7 {[%emt 0:00:02]} 45. Ra7 {[%emt 0:00:27]} Qd5 {[%emt 0:00:13]} 46. Qe3 {
[%emt 0:03:50]} Be6 {[%emt 0:00:55]} 47. a4 {[%emt 0:00:43]} Qa2 {[%emt 0:00:
00]} 48. Qg3 {[%emt 0:02:24]} Qc4 {[%emt 0:01:48]} 49. a5 {[%emt 0:05:49]} Qc5
{[%emt 0:00:30]} 50. Ra8 {[%emt 0:00:42]} Bd5 {[%emt 0:01:09]} 51. Rd8 {
[%emt 0:00:23]} Qxa5 {[%emt 0:03:05]} 52. Qg5 {[%emt 0:00:37]} Qa2 {[%emt 0:00:
00]} 53. e6 {[%emt 0:02:15]} Bxg2 {[%emt 0:00:53]} 54. Qxg2 {[%emt 0:00:12]}
Qxe6 {[%emt 0:00:26]} 55. Qb2 {[%emt 0:00:40]} g5 {[%emt 0:00:27]} 56. Rh8+ {
[%emt 0:01:00]} Kg6 {[%emt 0:00:09]} 57. Rg8+ {[%emt 0:00:04]} Kf5 {[%emt 0:00:
00]} 58. Rxg5+ {[%emt 0:00:24]} Kxf4 {[%emt 0:00:41]} 59. Qd2+ {[%emt 0:00:05]}
Ke4 {[%emt 0:00:54]} 60. Qe2+ {[%emt 0:00:05]} Kf4 {[%emt 0:00:23]} 61. Qxe6 {
[%emt 0:00:06]} 1-0

[Event "44th Chess Olympiad Open 2022"]
[Site "Chennai"]
[Date "2022.08.06"]
[Round "8.46"]
[White "Gong Thon Gong"]
[Black "Saraci, Korab"]
[Result "0-1"]
[WhiteElo "2176"]
[BlackElo "2287"]
[Annotator "NA RC"]
[PlyCount "118"]
[EventDate "2022.??.??"]
[TimeControl "60"]

1. e4 {[%emt 0:00:08]} c5 {[%emt 0:00:05]} 2. Nf3 {[%emt 0:00:13]} d6 {[%emt 0:
00:00]} 3. d4 {[%emt 0:00:25]} cxd4 {[%emt 0:00:06]} 4. Nxd4 {[%emt 0:00:05]}
Nf6 {[%emt 0:00:06]} 5. Nc3 {[%emt 0:00:16]} g6 {[%emt 0:00:13]} 6. Bc4 {
[%emt 0:00:06]} Nc6 {[%emt 0:00:32]} 7. Nxc6 {[%emt 0:00:10]} bxc6 {[%emt 0:00:
00]} 8. e5 {[%emt 0:00:21]} Ng4 {[%emt 0:08:52]} 9. exd6 {[%emt 0:01:03]} Qxd6
{[%emt 0:00:52]} 10. Qe2 {[%emt 0:01:04]} Bf5 {[%emt 0:09:16]} 11. h3 {[%emt 0:
00:00]} Ne5 {[%emt 0:01:11]} 12. Bb3 {[%emt 0:00:05]} Bg7 {[%emt 0:01:35]} 13.
O-O {[%emt 0:00:07]} O-O {[%emt 0:11:16]} 14. Bf4 {[%emt 0:01:03]} g5 {[%emt 0:
00:00]} 15. Bg3 {[%emt 0:00:54]} Qf6 {[%emt 0:03:37]} 16. f4 {[%emt 0:04:16]}
Ng6 {[%emt 0:01:02]} 17. fxg5 {[%emt 0:00:36]} Qxg5 {[%emt 0:00:07]} 18. Kh2 {
[%emt 0:00:24]} e6 {[%emt 0:03:38]} 19. Rad1 {[%emt 0:02:07]} h5 {[%emt 0:00:
00]} 20. Ne4 {[%emt 0:00:20]} Qh6 {[%emt 0:01:30]} 21. Nd6 {[%emt 0:02:09]} h4
{[%emt 0:00:01]} 22. Nxf5 {[%emt 0:00:30]} hxg3+ {[%emt 0:01:59]} 23. Nxg3 {
[%emt 0:00:07]} Bxb2 {[%emt 0:08:19]} 24. Ne4 {[%emt 0:00:19]} Be5+ {[%emt 0:
00:00]} 25. Kh1 {[%emt 0:00:03]} Rad8 {[%emt 0:00:46]} 26. Nf6+ {[%emt 0:01:42]
} Bxf6 {[%emt 0:01:57]} 27. Rxf6 {[%emt 0:00:08]} Rxd1+ {[%emt 0:00:29]} 28.
Qxd1 {[%emt 0:00:03]} Qg5 {[%emt 0:00:28]} 29. Qf1 {[%emt 0:04:13]} Kg7 {
[%emt 0:05:01]} 30. Rf3 {[%emt 0:00:40]} Ne5 {[%emt 0:05:30]} 31. Rc3 {[%emt 0:
00:00]} Rd8 {[%emt 0:01:16]} 32. Qe1 {[%emt 0:00:19]} Kf8 {[%emt 0:02:53]} 33.
Rg3 {[%emt 0:05:43]} Qf4 {[%emt 0:00:18]} 34. Qe3 {[%emt 0:00:32]} Rd4 {
[%emt 0:16:08]} 35. Qxf4 {[%emt 0:07:19]} Rxf4 {[%emt 0:00:05]} 36. Re3 {
[%emt 0:00:25]} Nd7 {[%emt 0:02:05]} 37. Kg1 {[%emt 0:00:16]} Nb6 {[%emt 0:00:
00]} 38. g3 {[%emt 0:00:14]} Rd4 {[%emt 0:01:26]} 39. Rc3 {[%emt 0:00:34]} Rd6
{[%emt 0:02:02]} 40. Kf2 {[%emt 0:00:18]} Ke7 {[%emt 0:01:58]} 41. Rc5 {
[%emt 0:30:25]} Rd2+ {[%emt 0:31:57]} 42. Ke3 {[%emt 0:00:18]} Rh2 {[%emt 0:00:
00]} 43. h4 {[%emt 0:00:32]} Kd6 {[%emt 0:00:24]} 44. Ra5 {[%emt 0:00:13]} Rxc2
{[%emt 0:01:40]} 45. Rxa7 {[%emt 0:01:01]} Rc3+ {[%emt 0:00:13]} 46. Kf2 {
[%emt 0:00:45]} c5 {[%emt 0:01:24]} 47. h5 {[%emt 0:01:04]} c4 {[%emt 0:05:13]}
48. Bd1 {[%emt 0:00:09]} Rc1 {[%emt 0:01:41]} 49. Bf3 {[%emt 0:00:53]} c3 {
[%emt 0:00:49]} 50. h6 {[%emt 0:03:02]} c2 {[%emt 0:00:00]} 51. Be4 {[%emt 0:
00:00]} Rf1+ {[%emt 0:00:00]} 52. Kxf1 {[%emt 0:00:00]} c1=Q+ {[%emt 0:00:00]}
53. Kg2 {[%emt 0:00:00]} f5 {[%emt 0:00:00]} 54. Bxf5 {[%emt 0:00:00]} exf5 {
[%emt 0:00:00]} 55. h7 {[%emt 0:00:00]} Qb2+ {[%emt 0:00:00]} 56. Kh3 {[%emt 0:
00:00]} Qh8 {[%emt 0:00:00]} 57. Kh4 {[%emt 0:00:00]} Nd7 {[%emt 0:00:00]} 58.
Ra6+ {[%emt 0:00:00]} Ke5 {[%emt 0:00:00]} 59. Rh6 {[%emt 0:00:00]} Nf6 {
[%emt 0:00:00]} 0-1

[Event "44th Chess Olympiad Open 2022"]
[Site "Chennai"]
[Date "2022.08.06"]
[Round "8.46"]
[White "Madol Garang Panthoum"]
[Black "Asllani, Muhamet"]
[Result "0-1"]
[WhiteElo "1985"]
[BlackElo "2235"]
[Annotator "NA RC"]
[PlyCount "138"]
[EventDate "2022.??.??"]
[TimeControl "60"]

1. e4 {[%emt 0:00:14]} d5 {[%emt 0:00:06]} 2. exd5 {[%emt 0:01:48]} Qxd5 {
[%emt 0:00:09]} 3. Nf3 {[%emt 0:01:34]} Nf6 {[%emt 0:00:10]} 4. d4 {[%emt 0:00:
00]} c6 {[%emt 0:00:14]} 5. Nc3 {[%emt 0:01:01]} Qa5 {[%emt 0:00:07]} 6. Bc4 {
[%emt 0:02:58]} Bg4 {[%emt 0:01:18]} 7. O-O {[%emt 0:01:50]} e6 {[%emt 0:00:21]
} 8. Re1 {[%emt 0:01:34]} Be7 {[%emt 0:00:19]} 9. h3 {[%emt 0:03:43]} Bh5 {
[%emt 0:00:27]} 10. Be2 {[%emt 0:01:29]} Nbd7 {[%emt 0:00:50]} 11. Bd2 {
[%emt 0:00:59]} Qb6 {[%emt 0:01:04]} 12. Na4 {[%emt 0:01:23]} Qc7 {[%emt 0:00:
00]} 13. c4 {[%emt 0:01:38]} O-O {[%emt 0:00:18]} 14. Ne5 {[%emt 0:01:31]} Nxe5
{[%emt 0:01:05]} 15. dxe5 {[%emt 0:04:41]} Qxe5 {[%emt 0:01:18]} 16. Bxh5 Qxh5
{[%emt 0:00:50]} 17. Qb3 {[%emt 0:05:35]} b5 {[%emt 0:00:47]} 18. Nc3 {[%emt 0:
00:00]} Rab8 {[%emt 0:01:15]} 19. cxb5 {[%emt 0:00:47]} cxb5 {[%emt 0:00:47]}
20. Bf4 {[%emt 0:01:01]} Rb6 {[%emt 0:02:42]} 21. Re5 {[%emt 0:01:41]} Qg6 {
[%emt 0:01:44]} 22. Rxb5 {[%emt 0:03:33]} Rxb5 {[%emt 0:00:51]} 23. Qxb5 {
[%emt 0:00:08]} Ne4 {[%emt 0:02:13]} 24. Nxe4 {[%emt 0:03:24]} Qxe4 {[%emt 0:
00:00]} 25. Be3 {[%emt 0:00:48]} Ra8 {[%emt 0:00:16]} 26. Rd1 {[%emt 0:02:40]}
a6 {[%emt 0:00:56]} 27. Qd3 {[%emt 0:03:39]} Qb4 {[%emt 0:00:45]} 28. Qd4 {
[%emt 0:01:14]} Qa5 {[%emt 0:00:31]} 29. Qc4 {[%emt 0:05:12]} h6 {[%emt 0:00:
00]} 30. Rd7 {[%emt 0:05:55]} Bf6 {[%emt 0:01:14]} 31. b4 {[%emt 0:02:25]} Qe5
{[%emt 0:02:58]} 32. Qd4 {[%emt 0:07:23]} Qb5 {[%emt 0:00:42]} 33. Qd6 {
[%emt 0:01:29]} a5 {[%emt 0:01:19]} 34. Qc7 {[%emt 0:07:11]} axb4 {[%emt 0:00:
00]} 35. Qb7 {[%emt 0:03:00]} Qxb7 {[%emt 0:00:51]} 36. Rxb7 {[%emt 0:00:01]}
Bc3 {[%emt 0:00:35]} 37. Bc5 {[%emt 0:03:00]} Rxa2 {[%emt 0:02:51]} 38. Bxb4 {
[%emt 0:00:03]} Ra1+ {[%emt 0:00:23]} 39. Kh2 {[%emt 0:00:12]} Be5+ {[%emt 0:
00:00]} 40. g3 {[%emt 0:00:20]} Rb1 {[%emt 0:00:18]} 41. Rb6 {[%emt 0:31:06]}
Bd4 {[%emt 0:30:29]} 42. Rb8+ {[%emt 0:00:55]} Kh7 {[%emt 0:00:10]} 43. Bd6 {
[%emt 0:00:59]} Rxb8 {[%emt 0:00:13]} 44. Bxb8 {[%emt 0:00:01]} Bxf2 {[%emt 0:
00:00]} 45. Kg2 {[%emt 0:01:16]} Bd4 {[%emt 0:00:33]} 46. Kf3 {[%emt 0:01:39]}
Kg6 {[%emt 0:00:14]} 47. Ke4 {[%emt 0:00:57]} Bb2 {[%emt 0:00:04]} 48. Bc7 {
[%emt 0:01:18]} h5 {[%emt 0:00:06]} 49. h4 {[%emt 0:06:00]} f5+ {[%emt 0:03:31]
} 50. Kf4 {[%emt 0:02:07]} Bf6 {[%emt 0:00:45]} 51. Bb8 {[%emt 0:01:37]} Kf7 {
[%emt 0:00:12]} 52. Bd6 {[%emt 0:01:08]} Ke8 {[%emt 0:00:20]} 53. Bc7 {[%emt 0:
00:00]} Kd7 {[%emt 0:00:04]} 54. Bb8 {[%emt 0:00:54]} Kc6 {[%emt 0:00:06]} 55.
Ba7 {[%emt 0:00:34]} Kd5 {[%emt 0:00:25]} 56. Bb8 {[%emt 0:01:53]} g6 {[%emt 0:
00:00]} 57. Bc7 {[%emt 0:01:37]} e5+ {[%emt 0:01:54]} 58. Kf3 {[%emt 0:00:02]}
g5 {[%emt 0:04:12]} 59. hxg5 {[%emt 0:00:23]} Bxg5 {[%emt 0:00:23]} 60. Bb6 {
[%emt 0:00:00]} h4 {[%emt 0:00:00]} 61. gxh4 {[%emt 0:00:00]} Bxh4 {[%emt 0:00:
00]} 62. Be3 {[%emt 0:00:00]} Be7 {[%emt 0:00:00]} 63. Bh6 {[%emt 0:00:00]} Kd4
{[%emt 0:00:00]} 64. Ke2 {[%emt 0:00:00]} Ke4 {[%emt 0:00:00]} 65. Bc1 {
[%emt 0:00:00]} Bc5 {[%emt 0:00:00]} 66. Bd2 {[%emt 0:00:00]} f4 {[%emt 0:00:
00]} 67. Bc3 {[%emt 0:00:00]} Bd4 {[%emt 0:00:00]} 68. Bd2 {[%emt 0:00:00]} f3+
{[%emt 0:00:00]} 69. Kf1 {[%emt 0:00:00]} Kd3 {[%emt 0:00:00]} 0-1

[Event "44th Chess Olympiad Open 2022"]
[Site "Chennai"]
[Date "2022.08.06"]
[Round "8.47"]
[White "Guzman, Christopher"]
[Black "Rocha, Maximiliano"]
[Result "1-0"]
[WhiteElo "2243"]
[BlackElo "2117"]
[Annotator "NA RC"]
[PlyCount "89"]
[EventDate "2022.??.??"]
[TimeControl "60"]

1. d4 {[%emt 0:00:16]} Nf6 {[%emt 0:01:41]} 2. c4 {[%emt 0:00:24]} e6 {[%emt 0:
00:00]} 3. Nc3 {[%emt 0:00:48]} d5 {[%emt 0:00:17]} 4. cxd5 {[%emt 0:00:24]}
exd5 {[%emt 0:00:08]} 5. Bg5 {[%emt 0:00:08]} Be7 {[%emt 0:00:28]} 6. Nf3 {
[%emt 0:00:10]} c6 {[%emt 0:01:32]} 7. Qc2 {[%emt 0:01:39]} Nbd7 {[%emt 0:00:
00]} 8. e3 {[%emt 0:01:14]} Nh5 {[%emt 0:05:18]} 9. Bxe7 {[%emt 0:04:46]} Qxe7
{[%emt 0:00:08]} 10. Be2 {[%emt 0:00:03]} Nhf6 {[%emt 0:02:00]} 11. a3 {
[%emt 0:00:13]} Ne4 {[%emt 0:01:02]} 12. Nxe4 {[%emt 0:02:13]} dxe4 {[%emt 0:
00:00]} 13. Nd2 {[%emt 0:00:02]} Nf6 {[%emt 0:00:31]} 14. b4 {[%emt 0:04:41]}
Bd7 {[%emt 0:01:45]} 15. O-O {[%emt 0:03:18]} O-O {[%emt 0:01:34]} 16. Rfc1 {
[%emt 0:06:14]} Rfe8 {[%emt 0:07:03]} 17. Qc5 {[%emt 0:00:45]} Nd5 {[%emt 0:00:
00]} 18. Qxe7 {[%emt 0:00:51]} Rxe7 {[%emt 0:00:05]} 19. Rab1 {[%emt 0:00:20]}
f5 {[%emt 0:09:37]} 20. Bc4 {[%emt 0:03:30]} Kf8 {[%emt 0:01:49]} 21. Bxd5 {
[%emt 0:00:14]} cxd5 {[%emt 0:00:01]} 22. Rc5 {[%emt 0:10:29]} Be6 {[%emt 0:00:
00]} 23. Nf1 {[%emt 0:04:27]} Ke8 {[%emt 0:13:58]} 24. Ng3 {[%emt 0:01:19]} Rc8
{[%emt 0:00:44]} 25. Rbc1 {[%emt 0:03:12]} Kd8 {[%emt 0:00:05]} 26. h4 {
[%emt 0:01:01]} b6 {[%emt 0:12:36]} 27. Rxc8+ {[%emt 0:00:43]} Bxc8 {[%emt 0:
00:00]} 28. Nh5 {[%emt 0:01:11]} Bb7 {[%emt 0:02:14]} 29. Nf4 {[%emt 0:00:29]}
Kd7 {[%emt 0:00:07]} 30. Rc3 {[%emt 0:01:59]} Kd6 {[%emt 0:00:20]} 31. f3 {
[%emt 0:00:45]} Ba6 {[%emt 0:12:03]} 32. fxe4 {[%emt 0:00:39]} fxe4 {[%emt 0:
00:00]} 33. Kf2 {[%emt 0:00:35]} Bc4 {[%emt 0:00:05]} 34. Kg3 {[%emt 0:00:15]}
Rf7 {[%emt 0:01:49]} 35. Kg4 {[%emt 0:00:27]} Rf6 {[%emt 0:01:07]} 36. Kg5 {
[%emt 0:01:59]} Ke7 {[%emt 0:04:35]} 37. Kg4 {[%emt 0:06:42]} Kd6 {[%emt 0:00:
00]} 38. Kh3 {[%emt 0:00:40]} Rh6 {[%emt 0:01:08]} 39. Kg3 {[%emt 0:00:32]} Rf6
{[%emt 0:00:33]} 40. Kf2 {[%emt 0:01:26]} Rf8 {[%emt 0:04:06]} 41. g4 {[%emt 0:
00:00]} Ke7 {[%emt 0:31:44]} 42. Kg3 {[%emt 0:00:24]} Kf6 {[%emt 0:00:49]} 43.
Rc2 {[%emt 0:02:22]} g5 {[%emt 0:00:00]} 44. hxg5+ {[%emt 0:00:00]} Ke7 {
[%emt 0:00:00]} 45. g6 {[%emt 0:00:00]} 1-0

[Event "44th Chess Olympiad Open 2022"]
[Site "Chennai"]
[Date "2022.08.06"]
[Round "8.47"]
[White "Camacho Campusano, David Daniel"]
[Black "Espinoza Solano, Jose Nahum"]
[Result "0-1"]
[WhiteElo "2221"]
[BlackElo "2093"]
[Annotator "NA RC"]
[PlyCount "58"]
[EventDate "2022.??.??"]
[TimeControl "60"]

1. e4 {[%emt 0:00:05]} e5 {[%emt 0:00:44]} 2. Nf3 {[%emt 0:00:08]} Nc6 {
[%emt 0:00:12]} 3. Bc4 {[%emt 0:00:24]} Bc5 {[%emt 0:00:22]} 4. Nc3 {[%emt 0:
00:00]} Nf6 {[%emt 0:00:34]} 5. d3 {[%emt 0:00:30]} h6 {[%emt 0:01:22]} 6. a3 {
[%emt 0:03:52]} a6 {[%emt 0:01:39]} 7. O-O {[%emt 0:03:03]} d6 {[%emt 0:00:35]}
8. Be3 {[%emt 0:00:59]} O-O {[%emt 0:02:35]} 9. Ne2 {[%emt 0:01:54]} Bg4 {
[%emt 0:01:33]} 10. Ng3 {[%emt 0:01:49]} Nd4 {[%emt 0:03:35]} 11. Bxd4 {
[%emt 0:01:04]} Bxd4 {[%emt 0:00:05]} 12. c3 {[%emt 0:00:36]} Bb6 {[%emt 0:00:
00]} 13. h3 {[%emt 0:01:36]} Be6 {[%emt 0:02:07]} 14. Bb3 {[%emt 0:02:12]} Nh7
{[%emt 0:03:33]} 15. Bc2 {[%emt 0:09:52]} Qf6 {[%emt 0:05:01]} 16. Qe2 {
[%emt 0:04:40]} g6 {[%emt 0:02:44]} 17. Rad1 {[%emt 0:05:14]} Ng5 {[%emt 0:00:
00]} 18. Nxg5 {[%emt 0:08:03]} hxg5 {[%emt 0:00:06]} 19. Nh1 {[%emt 0:02:58]}
Kg7 {[%emt 0:02:31]} 20. g4 {[%emt 0:02:20]} Rh8 {[%emt 0:00:57]} 21. Kg2 {
[%emt 0:00:51]} Rxh3 {[%emt 0:03:52]} 22. Kxh3 {[%emt 0:39:06]} Qf4 {[%emt 0:
00:00]} 23. Kg2 {[%emt 0:05:03]} Rh8 {[%emt 0:01:05]} 24. d4 {[%emt 0:03:34]}
Bxg4 {[%emt 0:02:52]} 25. Qxg4 {[%emt 0:01:06]} Qxg4+ {[%emt 0:00:08]} 26. Ng3
{[%emt 0:00:08]} exd4 {[%emt 0:01:19]} 27. cxd4 {[%emt 0:00:03]} Qf4 {[%emt 0:
00:00]} 28. Rfe1 {[%emt 0:00:52]} g4 {[%emt 0:01:02]} 29. Rd3 {[%emt 0:00:55]}
Rh2+ {[%emt 0:00:10]} 0-1